[Event "***Titled Tuesday 3|2 Blitz"]
[Site "Chess.com"]
[Date "2017.02.07"]
[Round "7"]
[White "EltajSafarli"]
[Black "MagnusCarlsen"]
[Result "1/2-1/2"]
[WhiteElo "2855"]
[BlackElo "2983"]
[TimeControl "180+2"]
[EndTime "14:38:32 PST"]
[Termination "Game drawn by agreement"]

1. e4 {[%clk 0:03:02]} 1... e5 {[%clk 0:02:58.3]} 2. Nf3 {[%clk 0:03:02.1]} 2...
Nc6 {[%clk 0:02:59.7]} 3. Bb5 {[%clk 0:03:03.3]} 3... Nf6 {[%clk 0:02:58.9]} 4.
O-O {[%clk 0:02:56.6]} 4... Nxe4 {[%clk 0:02:59.8]} 5. d4 {[%clk 0:02:57.2]}
5... Be7 {[%clk 0:03:00.2]} 6. dxe5 {[%clk 0:02:54.2]} 6... O-O {[%clk
0:02:51.8]} 7. Qd5 {[%clk 0:02:48.2]} 7... Nc5 {[%clk 0:02:52.5]} 8. Be3 {[%clk
0:02:47.6]} 8... a6 {[%clk 0:02:44.8]} 9. Be2 {[%clk 0:02:41.4]} 9... d6 {[%clk
0:02:39.2]} 10. Bxc5 {[%clk 0:02:38.3]} 10... dxc5 {[%clk 0:02:39.8]} 11. Qe4
{[%clk 0:02:39.9]} 11... Nd4 {[%clk 0:02:37.2]} 12. Nxd4 {[%clk 0:02:24.8]}
12... Qxd4 {[%clk 0:02:38.1]} 13. Nc3 {[%clk 0:02:22.3]} 13... Qxe4 {[%clk
0:02:38.9]} 14. Nxe4 {[%clk 0:02:24.2]} 14... Bf5 {[%clk 0:02:40.3]} 15. Bf3
{[%clk 0:02:21]} 15... Rad8 {[%clk 0:02:41.3]} 16. Rad1 {[%clk 0:02:17.8]} 16...
c4 {[%clk 0:02:42]} 17. c3 {[%clk 0:02:11.1]} 17... b5 {[%clk 0:02:43]} 18. Rfe1
{[%clk 0:02:05.5]} 18... Rfe8 {[%clk 0:02:37.9]} 19. g3 {[%clk 0:01:59]} 19...
Rxd1 {[%clk 0:02:37.8]} 20. Bxd1 {[%clk 0:01:59.3]} 20... Bf8 {[%clk 0:02:39.4]}
21. f4 {[%clk 0:01:54.9]} 21... f6 {[%clk 0:02:39.4]} 22. g4 {[%clk 0:01:43.9]}
22... Bxe4 {[%clk 0:02:35.4]} 23. Rxe4 {[%clk 0:01:45.8]} 23... fxe5 {[%clk
0:02:31]} 24. Rxe5 {[%clk 0:01:46.7]} 24... Rxe5 {[%clk 0:02:20.5]} 25. fxe5
{[%clk 0:01:48.6]} 25... Kf7 {[%clk 0:02:20.2]} 26. Bf3 {[%clk 0:01:46.7]} 26...
Bc5+ {[%clk 0:02:21]} 27. Kg2 {[%clk 0:01:46.5]} 27... Be3 {[%clk 0:02:22.2]}
28. Bb7 {[%clk 0:01:43.7]} 28... a5 {[%clk 0:02:09.8]} 29. Ba6 {[%clk
0:01:44.6]} 29... c6 {[%clk 0:02:09.3]} 30. Bb7 {[%clk 0:01:45.1]} 30... Ke6
{[%clk 0:02:07.9]} 31. Bxc6 {[%clk 0:01:43.4]} 31... b4 {[%clk 0:02:03.8]} 32.
Kf3 {[%clk 0:01:39.7]} 32... Bc1 {[%clk 0:02:04.6]} 33. cxb4 {[%clk 0:01:35.1]}
33... axb4 {[%clk 0:02:02.4]} 34. Ke4 {[%clk 0:01:35.8]} 34... Bxb2 {[%clk
0:01:56.8]} 35. Bd5+ {[%clk 0:01:36.9]} 35... Ke7 {[%clk 0:01:56.8]} 36. Bxc4
{[%clk 0:01:38.7]} 36... h6 {[%clk 0:01:57.7]} 37. h4 {[%clk 0:01:31.5]} 37...
Bc3 {[%clk 0:01:58.5]} 38. h5 {[%clk 0:01:32.7]} 38... Bb2 {[%clk 0:01:58.8]}
39. Bb3 {[%clk 0:01:32.8]} 39... Bc3 {[%clk 0:02:00]} 1/2-1/2

[Event "***Titled Tuesday 3|2 Blitz"]
[Site "Chess.com"]
[Date "2017.02.07"]
[Round "7"]
[White "NoWuss2"]
[Black "ER404"]
[Result "0-1"]
[WhiteElo "2042"]
[BlackElo "2159"]
[TimeControl "180+2"]
[EndTime "14:39:37 PST"]
[Termination "ER404 won on time"]

1. e4 {[%clk 0:03:02]} 1... c6 {[%clk 0:02:59.5]} 2. Nc3 {[%clk 0:03:01.1]} 2...
d5 {[%clk 0:03:01]} 3. Nf3 {[%clk 0:03:02.6]} 3... Bg4 {[%clk 0:03:01.7]} 4. h3
{[%clk 0:03:04.2]} 4... Bh5 {[%clk 0:03:02.6]} 5. exd5 {[%clk 0:03:00.5]} 5...
cxd5 {[%clk 0:03:04.5]} 6. g4 {[%clk 0:03:00.4]} 6... Bg6 {[%clk 0:03:05.8]} 7.
Bb5+ {[%clk 0:03:01.9]} 7... Nc6 {[%clk 0:03:07.2]} 8. Ne5 {[%clk 0:03:03.4]}
8... Rc8 {[%clk 0:03:08.8]} 9. h4 {[%clk 0:03:01.6]} 9... f6 {[%clk 0:03:08.9]}
10. Nxg6 {[%clk 0:03:00.9]} 10... hxg6 {[%clk 0:03:10.8]} 11. d4 {[%clk
0:03:01.6]} 11... e6 {[%clk 0:03:11.8]} 12. Bd3 {[%clk 0:02:49.2]} 12... Kf7
{[%clk 0:03:09.3]} 13. h5 {[%clk 0:02:48.3]} 13... gxh5 {[%clk 0:03:10.8]} 14.
gxh5 {[%clk 0:02:48.7]} 14... Nge7 {[%clk 0:03:11]} 15. Ne2 {[%clk 0:02:40.6]}
15... Nf5 {[%clk 0:03:06.5]} 16. c3 {[%clk 0:02:35.2]} 16... Bd6 {[%clk
0:03:05.5]} 17. Nf4 {[%clk 0:02:29.5]} 17... Re8 {[%clk 0:02:54.1]} 18. Qg4
{[%clk 0:02:09.7]} 18... Qc7 {[%clk 0:02:28.2]} 19. Kd1 {[%clk 0:01:46]} 19...
Nh6 {[%clk 0:02:12.9]} 20. Bg6+ {[%clk 0:01:17.3]} 20... Kg8 {[%clk 0:01:49.7]}
21. Qf3 {[%clk 0:01:00.4]} 21... Re7 {[%clk 0:01:45.5]} 22. Rg1 {[%clk
0:00:28.1]} 22... Rd8 {[%clk 0:01:31.6]} 23. Nxd5 {[%clk 0:00:17]} 23... exd5
{[%clk 0:01:33.5]} 24. Qxd5+ {[%clk 0:00:08.9]} 24... Kh8 {[%clk 0:01:31]} 25.
Qg2 {[%clk 0:00:08.7]} 25... Bf4 {[%clk 0:01:29.1]} 26. Bd3 {[%clk 0:00:04.3]}
26... Nxd4 {[%clk 0:01:15.8]} 27. Qg6 {[%clk 0:00:04.9]} 27... Ndf5 {[%clk
0:01:14.9]} 0-1

[Event "***Titled Tuesday 3|2 Blitz"]
[Site "Chess.com"]
[Date "2017.02.07"]
[Round "7"]
[White "Vamostodorecto"]
[Black "underdogchss"]
[Result "1/2-1/2"]
[WhiteElo "2452"]
[BlackElo "2456"]
[TimeControl "180+2"]
[EndTime "14:39:39 PST"]
[Termination "Game drawn by agreement"]

1. d4 {[%clk 0:03:02]} 1... Nf6 {[%clk 0:03:00.4]} 2. c4 {[%clk 0:03:02.6]} 2...
e6 {[%clk 0:03:00.6]} 3. Nc3 {[%clk 0:03:03.2]} 3... Bb4 {[%clk 0:03:01.1]} 4.
a3 {[%clk 0:03:03.7]} 4... Bxc3+ {[%clk 0:03:00.8]} 5. bxc3 {[%clk 0:03:04.8]}
5... c5 {[%clk 0:02:55]} 6. f3 {[%clk 0:03:05.1]} 6... d5 {[%clk 0:02:30]} 7.
cxd5 {[%clk 0:03:05.2]} 7... Nxd5 {[%clk 0:02:30.1]} 8. dxc5 {[%clk 0:03:05]}
8... Qa5 {[%clk 0:02:26.9]} 9. e4 {[%clk 0:03:06]} 9... Nf6 {[%clk 0:02:27.6]}
10. Be3 {[%clk 0:02:57.7]} 10... O-O {[%clk 0:02:25.5]} 11. Qb3 {[%clk
0:02:54.2]} 11... Nc6 {[%clk 0:02:24.6]} 12. Nh3 {[%clk 0:02:44.1]} 12... Nd7
{[%clk 0:02:22.8]} 13. Bb5 {[%clk 0:02:08.3]} 13... Qc7 {[%clk 0:02:04.1]} 14.
O-O {[%clk 0:01:58.4]} 14... Nce5 {[%clk 0:02:00.4]} 15. Bxd7 {[%clk 0:01:44]}
15... Nxd7 {[%clk 0:01:55.8]} 16. Qb4 {[%clk 0:01:31]} 16... b6 {[%clk
0:01:55.1]} 17. cxb6 {[%clk 0:01:29.4]} 17... axb6 {[%clk 0:01:56.4]} 18. Rab1
{[%clk 0:01:23.5]} 18... Ba6 {[%clk 0:01:38.7]} 19. Rfd1 {[%clk 0:01:23.4]}
19... Rfc8 {[%clk 0:00:48.3]} 20. Qd6 {[%clk 0:01:12]} 20... Qxd6 {[%clk
0:00:33]} 21. Rxd6 {[%clk 0:01:12.1]} 21... Rxc3 {[%clk 0:00:30.8]} 22. Rxd7
{[%clk 0:01:09.9]} 22... Rxe3 {[%clk 0:00:31.3]} 23. Rxb6 {[%clk 0:01:07.5]}
23... Rxa3 {[%clk 0:00:28.2]} 24. Rbd6 {[%clk 0:01:02.3]} 24... h6 {[%clk
0:00:24.1]} 25. Kf2 {[%clk 0:00:58.2]} 25... Ra2+ {[%clk 0:00:24]} 26. Kg3
{[%clk 0:00:58.9]} 26... Bf1 {[%clk 0:00:25.1]} 27. Rd2 {[%clk 0:00:56.7]}
1/2-1/2

[Event "***Titled Tuesday 3|2 Blitz"]
[Site "Chess.com"]
[Date "2017.02.07"]
[Round "7"]
[White "plouarzel"]
[Black "HouseOfDurin"]
[Result "1-0"]
[WhiteElo "2398"]
[BlackElo "1896"]
[TimeControl "180+2"]
[EndTime "14:39:54 PST"]
[Termination "plouarzel won by resignation"]

1. e4 {[%clk 0:03:02]} 1... c5 {[%clk 0:03:00.4]} 2. Nf3 {[%clk 0:02:59.8]} 2...
Nc6 {[%clk 0:03:01.7]} 3. Bb5 {[%clk 0:03:00.2]} 3... g6 {[%clk 0:03:02.2]} 4.
Bxc6 {[%clk 0:03:01.1]} 4... bxc6 {[%clk 0:03:04.1]} 5. O-O {[%clk 0:03:01.1]}
5... Bg7 {[%clk 0:03:04]} 6. Re1 {[%clk 0:03:02.1]} 6... e5 {[%clk 0:03:04.2]}
7. c3 {[%clk 0:03:01.5]} 7... Qb6 {[%clk 0:02:28.8]} 8. Na3 {[%clk 0:02:51.5]}
8... Ba6 {[%clk 0:02:27.2]} 9. Qa4 {[%clk 0:02:51]} 9... Bb5 {[%clk 0:02:07.8]}
10. Qb3 {[%clk 0:02:47.1]} 10... Ne7 {[%clk 0:02:02]} 11. Nc4 {[%clk 0:02:28.7]}
11... Bxc4 {[%clk 0:02:00.1]} 12. Qxc4 {[%clk 0:02:30.6]} 12... d5 {[%clk
0:01:29.3]} 13. Qa4 {[%clk 0:02:30.6]} 13... d4 {[%clk 0:01:24.1]} 14. b3 {[%clk
0:02:18.8]} 14... O-O {[%clk 0:01:04.6]} 15. Ba3 {[%clk 0:02:16.5]} 15... Rfc8
{[%clk 0:00:16.9]} 16. Qc4 {[%clk 0:02:14.6]} 16... Qb5 {[%clk 0:00:15.7]} 17.
Qxc5 {[%clk 0:02:12.7]} 17... Rc7 {[%clk 0:00:10]} 18. cxd4 {[%clk 0:02:03.8]}
18... exd4 {[%clk 0:00:05.1]} 19. Rac1 {[%clk 0:02:05.2]} 19... Qxc5 {[%clk
0:00:04.6]} 20. Bxc5 {[%clk 0:02:07.1]} 20... Rd8 {[%clk 0:00:05.3]} 21. Bxe7
{[%clk 0:02:06.8]} 21... Rxe7 {[%clk 0:00:07.1]} 22. Rxc6 {[%clk 0:02:08.1]}
22... d3 {[%clk 0:00:07.4]} 23. e5 {[%clk 0:02:06.4]} 23... Rde8 {[%clk
0:00:06.7]} 24. Rc5 {[%clk 0:01:55.3]} 24... f6 {[%clk 0:00:07.2]} 25. Rd5
{[%clk 0:01:50.4]} 25... fxe5 {[%clk 0:00:05.6]} 26. Rxd3 {[%clk 0:01:49.6]}
26... e4 {[%clk 0:00:06.9]} 27. Rde3 {[%clk 0:01:51.1]} 27... Bh6 {[%clk
0:00:04.5]} 28. R3e2 {[%clk 0:01:50.7]} 28... Kf7 {[%clk 0:00:02.6]} 29. Nd4
{[%clk 0:01:45.9]} 29... Rd8 {[%clk 0:00:02.3]} 30. Rxe4 {[%clk 0:01:43.9]}
30... Rxe4 {[%clk 0:00:03.4]} 31. Rxe4 {[%clk 0:01:45.8]} 31... Bxd2 {[%clk
0:00:04.7]} 32. g3 {[%clk 0:01:45.4]} 32... Bc3 {[%clk 0:00:05.5]} 33. Nb5
{[%clk 0:01:45.6]} 33... Rd1+ {[%clk 0:00:06.9]} 34. Kg2 {[%clk 0:01:46.5]}
34... Ba5 {[%clk 0:00:06.7]} 35. Nxa7 {[%clk 0:01:45.5]} 35... Bb6 {[%clk
0:00:07.7]} 36. Nb5 {[%clk 0:01:47]} 36... Rd2 {[%clk 0:00:09]} 37. Rf4+ {[%clk
0:01:48.1]} 37... Ke6 {[%clk 0:00:09.4]} 38. a4 {[%clk 0:01:49.1]} 38... Be3
{[%clk 0:00:09]} 39. Re4+ {[%clk 0:01:49.5]} 39... Kd5 {[%clk 0:00:09.5]} 40.
Rxe3 {[%clk 0:01:51]} 1-0

[Event "***Titled Tuesday 3|2 Blitz"]
[Site "Chess.com"]
[Date "2017.02.07"]
[Round "7"]
[White "Ar4uha"]
[Black "Konavets"]
[Result "0-1"]
[WhiteElo "2429"]
[BlackElo "2572"]
[TimeControl "180+2"]
[EndTime "14:40:05 PST"]
[Termination "Konavets won by resignation"]

1. e4 {[%clk 0:03:02]} 1... c5 {[%clk 0:03:00.4]} 2. Nf3 {[%clk 0:03:03]} 2...
d6 {[%clk 0:03:01.2]} 3. Bb5+ {[%clk 0:03:03.8]} 3... Nd7 {[%clk 0:03:01.6]} 4.
d4 {[%clk 0:03:04.9]} 4... cxd4 {[%clk 0:03:02.5]} 5. Qxd4 {[%clk 0:03:06.8]}
5... a6 {[%clk 0:03:04.1]} 6. Bxd7+ {[%clk 0:03:07.9]} 6... Bxd7 {[%clk
0:03:06]} 7. c4 {[%clk 0:03:09.5]} 7... Rc8 {[%clk 0:03:04.8]} 8. Nc3 {[%clk
0:03:10]} 8... e5 {[%clk 0:03:02.4]} 9. Qd3 {[%clk 0:03:09.9]} 9... h6 {[%clk
0:03:03.6]} 10. O-O {[%clk 0:03:09.7]} 10... Nf6 {[%clk 0:03:04.5]} 11. Rd1
{[%clk 0:03:10.2]} 11... Be7 {[%clk 0:03:05.5]} 12. b3 {[%clk 0:03:10.3]} 12...
O-O {[%clk 0:03:06.3]} 13. a4 {[%clk 0:03:02.4]} 13... Qa5 {[%clk 0:03:07.1]}
14. Ba3 {[%clk 0:02:58.3]} 14... Rfd8 {[%clk 0:03:07.7]} 15. Ne1 {[%clk
0:02:39.7]} 15... Be8 {[%clk 0:02:54.9]} 16. Nc2 {[%clk 0:02:32.8]} 16... Qb6
{[%clk 0:02:18.5]} 17. Ne3 {[%clk 0:02:33.6]} 17... Bc6 {[%clk 0:02:09.9]} 18.
Rab1 {[%clk 0:02:26.5]} 18... Qc7 {[%clk 0:02:04.4]} 19. Rbc1 {[%clk 0:02:21.9]}
19... b6 {[%clk 0:02:04.2]} 20. Ncd5 {[%clk 0:02:19.4]} 20... Bxd5 {[%clk
0:02:01.6]} 21. Nxd5 {[%clk 0:02:16.9]} 21... Nxd5 {[%clk 0:02:01.3]} 22. Qxd5
{[%clk 0:02:14.9]} 22... Bf8 {[%clk 0:01:57.6]} 23. g3 {[%clk 0:02:10.3]} 23...
Qc6 {[%clk 0:01:58.6]} 24. Rd3 {[%clk 0:01:48.2]} 24... g6 {[%clk 0:01:53.3]}
25. Rcd1 {[%clk 0:01:46.7]} 25... Qc7 {[%clk 0:01:45.2]} 26. Rf3 {[%clk
0:01:36.1]} 26... Qe7 {[%clk 0:01:41.4]} 27. Rfd3 {[%clk 0:01:34.1]} 27... Qc7
{[%clk 0:01:29.4]} 28. Rf3 {[%clk 0:01:34.3]} 28... Kg7 {[%clk 0:01:27.5]} 29.
h4 {[%clk 0:01:29.6]} 29... h5 {[%clk 0:01:28.2]} 30. Qd2 {[%clk 0:01:30.7]}
30... Kg8 {[%clk 0:01:26.7]} 31. Rd3 {[%clk 0:01:30.4]} 31... Qb7 {[%clk
0:01:27]} 32. Rd5 {[%clk 0:01:31.2]} 32... Rc6 {[%clk 0:01:26.5]} 33. Rxe5
{[%clk 0:01:28.8]} 33... dxe5 {[%clk 0:01:27.1]} 34. Qxd8 {[%clk 0:01:30.7]}
34... Rc8 {[%clk 0:01:28.7]} 35. f3 {[%clk 0:00:48.3]} 35... Rxd8 {[%clk
0:01:17.8]} 36. Rxd8 {[%clk 0:00:50.2]} 36... Qc7 {[%clk 0:01:19.3]} 37. Rxf8+
{[%clk 0:00:45.6]} 37... Kg7 {[%clk 0:01:20.3]} 38. Re8 {[%clk 0:00:42.8]} 38...
Qd7 {[%clk 0:01:21.5]} 39. Rxe5 {[%clk 0:00:26.2]} 39... Qd4+ {[%clk 0:01:21.6]}
0-1

[Event "***Titled Tuesday 3|2 Blitz"]
[Site "Chess.com"]
[Date "2017.02.07"]
[Round "7"]
[White "joppie2"]
[Black "IMJonathanCarlstedt"]
[Result "0-1"]
[WhiteElo "2515"]
[BlackElo "2442"]
[TimeControl "180+2"]
[EndTime "14:40:07 PST"]
[Termination "IMJonathanCarlstedt won by resignation"]

1. e4 {[%clk 0:03:02]} 1... e5 {[%clk 0:03:00.7]} 2. f4 {[%clk 0:03:01.8]} 2...
Bc5 {[%clk 0:03:00]} 3. Nf3 {[%clk 0:03:02.6]} 3... d6 {[%clk 0:03:01]} 4. Bc4
{[%clk 0:03:04.2]} 4... Nc6 {[%clk 0:03:00.6]} 5. Nc3 {[%clk 0:03:04.7]} 5...
Nf6 {[%clk 0:03:00.2]} 6. d3 {[%clk 0:03:01.6]} 6... a6 {[%clk 0:03:00.1]} 7. f5
{[%clk 0:02:53]} 7... h6 {[%clk 0:02:58.6]} 8. Qe2 {[%clk 0:02:52.1]} 8... O-O
{[%clk 0:02:57.8]} 9. Be3 {[%clk 0:02:48]} 9... Nd4 {[%clk 0:02:56.9]} 10. Qd2
{[%clk 0:02:33]} 10... c6 {[%clk 0:02:55.8]} 11. O-O-O {[%clk 0:02:29.9]} 11...
b5 {[%clk 0:02:47.2]} 12. Bb3 {[%clk 0:02:25.9]} 12... a5 {[%clk 0:02:48.3]} 13.
a4 {[%clk 0:02:25.4]} 13... Qb6 {[%clk 0:02:37.6]} 14. Kb1 {[%clk 0:02:22.1]}
14... Nxb3 {[%clk 0:02:36.8]} 15. cxb3 {[%clk 0:02:13]} 15... Bxe3 {[%clk
0:02:36.8]} 16. Qe2 {[%clk 0:02:14.7]} 16... b4 {[%clk 0:02:36.1]} 17. Na2
{[%clk 0:02:12.7]} 17... Ba6 {[%clk 0:02:35.5]} 18. g4 {[%clk 0:02:13.5]} 18...
d5 {[%clk 0:02:26.9]} 19. Qg2 {[%clk 0:01:41.9]} 19... Bxd3+ {[%clk 0:02:12.7]}
20. Rxd3 {[%clk 0:01:41.9]} 20... dxe4 {[%clk 0:02:14.1]} 21. Rxe3 {[%clk
0:01:42.1]} 21... Qxe3 {[%clk 0:02:15.4]} 22. Nxe5 {[%clk 0:01:43.6]} 22... Rfe8
{[%clk 0:02:10]} 23. Nc4 {[%clk 0:01:40.3]} 23... Qxb3 {[%clk 0:02:05]} 24. Rc1
{[%clk 0:01:30.6]} 24... e3 {[%clk 0:01:59.5]} 25. Qe2 {[%clk 0:01:29.9]} 25...
Nd5 {[%clk 0:01:51.8]} 26. Rc2 {[%clk 0:01:26.7]} 26... Nf4 {[%clk 0:01:45.3]}
27. Qe1 {[%clk 0:01:28.1]} 27... e2 {[%clk 0:01:37.2]} 28. Nc1 {[%clk
0:01:28.3]} 28... Qf3 {[%clk 0:01:30.8]} 29. Nd2 {[%clk 0:01:21.8]} 29... Qxg4
{[%clk 0:01:21.6]} 30. h3 {[%clk 0:00:51.6]} 30... Qxf5 {[%clk 0:01:19.8]} 31.
Nf3 {[%clk 0:00:50.6]} 31... Ng2 {[%clk 0:01:16.1]} 32. Qg3 {[%clk 0:00:41.7]}
32... e1=Q {[%clk 0:01:03.8]} 33. Qxg2 {[%clk 0:00:39.2]} 33... Qee4 {[%clk
0:01:00.3]} 0-1

[Event "***Titled Tuesday 3|2 Blitz"]
[Site "Chess.com"]
[Date "2017.02.07"]
[Round "7"]
[White "olomi007"]
[Black "Dale"]
[Result "1-0"]
[WhiteElo "2501"]
[BlackElo "1983"]
[TimeControl "180+2"]
[EndTime "14:40:12 PST"]
[Termination "olomi007 won by checkmate"]

1. e4 {[%clk 0:03:02]} 1... Nf6 {[%clk 0:03:02]} 2. e5 {[%clk 0:02:56.7]} 2...
Nd5 {[%clk 0:03:03.1]} 3. d4 {[%clk 0:02:57.9]} 3... c5 {[%clk 0:03:03]} 4. c4
{[%clk 0:02:56.2]} 4... Nb4 {[%clk 0:03:03.4]} 5. d5 {[%clk 0:02:54.5]} 5... Qa5
{[%clk 0:03:04.4]} 6. Nc3 {[%clk 0:02:54.9]} 6... d6 {[%clk 0:03:04.8]} 7. f4
{[%clk 0:02:43.5]} 7... Bf5 {[%clk 0:03:04.8]} 8. Kf2 {[%clk 0:02:35.5]} 8... g5
{[%clk 0:03:05.3]} 9. exd6 {[%clk 0:02:20.6]} 9... Bg7 {[%clk 0:03:03]} 10. Nf3
{[%clk 0:02:18.7]} 10... exd6 {[%clk 0:02:52.5]} 11. Qe2+ {[%clk 0:02:13.4]}
11... Kd8 {[%clk 0:02:44.4]} 12. Nxg5 {[%clk 0:02:13.1]} 12... Nd3+ {[%clk
0:02:43.2]} 13. Kg3 {[%clk 0:02:13.1]} 13... Bd4 {[%clk 0:02:30.9]} 14. Nxf7+
{[%clk 0:01:56.4]} 14... Kd7 {[%clk 0:02:31.6]} 15. Nxh8 {[%clk 0:01:56.9]}
15... Bf2+ {[%clk 0:02:32.6]} 16. Kf3 {[%clk 0:01:55.6]} 16... Qd8 {[%clk
0:02:08.2]} 17. g4 {[%clk 0:01:33.1]} 17... Bxg4+ {[%clk 0:02:00.6]} 18. Kxg4
{[%clk 0:01:32.9]} 18... Qh4+ {[%clk 0:02:01.3]} 19. Kf5 {[%clk 0:01:13]} 19...
Nb4 {[%clk 0:01:28.1]} 20. Nb5 {[%clk 0:01:01.7]} 20... Be3 {[%clk 0:00:23.6]}
21. Qxe3 {[%clk 0:00:45.2]} 21... Qh5+ {[%clk 0:00:22.3]} 22. Kf6 {[%clk
0:00:45.2]} 22... Kc8 {[%clk 0:00:17.2]} 23. Nxd6+ {[%clk 0:00:43.2]} 23... Kc7
{[%clk 0:00:17.9]} 24. Qxc5+ {[%clk 0:00:32.7]} 24... N8c6 {[%clk 0:00:17.5]}
25. Nb5+ {[%clk 0:00:33.2]} 25... Kc8 {[%clk 0:00:15.2]} 26. Qf8+ {[%clk
0:00:33.3]} 26... Kd7 {[%clk 0:00:15.9]} 27. Bh3+ {[%clk 0:00:26.8]} 27... Qxh3
{[%clk 0:00:15.9]} 28. Qd6+ {[%clk 0:00:27.4]} 28... Ke8 {[%clk 0:00:16.6]} 29.
Nc7# {[%clk 0:00:27.6]} 1-0

[Event "***Titled Tuesday 3|2 Blitz"]
[Site "Chess.com"]
[Date "2017.02.07"]
[Round "7"]
[White "AllStarShark"]
[Black "scenicregal"]
[Result "0-1"]
[WhiteElo "2237"]
[BlackElo "1858"]
[TimeControl "180+2"]
[EndTime "14:40:33 PST"]
[Termination "scenicregal won by checkmate"]

1. d4 {[%clk 0:03:02]} 1... c5 {[%clk 0:03:00.3]} 2. c3 {[%clk 0:02:59.5]} 2...
e6 {[%clk 0:02:54]} 3. Nf3 {[%clk 0:02:58.4]} 3... Nf6 {[%clk 0:02:54]} 4. Bf4
{[%clk 0:02:48.9]} 4... b6 {[%clk 0:02:54.7]} 5. e3 {[%clk 0:02:49.7]} 5... Bb7
{[%clk 0:02:55.8]} 6. Bd3 {[%clk 0:02:50.6]} 6... d6 {[%clk 0:02:57.2]} 7. Nbd2
{[%clk 0:02:46.5]} 7... h6 {[%clk 0:02:47.2]} 8. O-O {[%clk 0:02:46.4]} 8... Be7
{[%clk 0:02:47.4]} 9. e4 {[%clk 0:02:45.8]} 9... Nbd7 {[%clk 0:02:29.8]} 10. Qe2
{[%clk 0:02:39.5]} 10... d5 {[%clk 0:02:26.4]} 11. h3 {[%clk 0:02:32.6]} 11...
cxd4 {[%clk 0:02:18.3]} 12. cxd4 {[%clk 0:02:30]} 12... dxe4 {[%clk 0:02:14.6]}
13. Nxe4 {[%clk 0:02:30.7]} 13... Nxe4 {[%clk 0:02:15.3]} 14. Bxe4 {[%clk
0:02:32.6]} 14... Bxe4 {[%clk 0:02:15.7]} 15. Qxe4 {[%clk 0:02:34.1]} 15... Nf6
{[%clk 0:02:16.6]} 16. Qc6+ {[%clk 0:02:34.4]} 16... Kf8 {[%clk 0:02:15.5]} 17.
Rac1 {[%clk 0:02:21.2]} 17... Nd5 {[%clk 0:02:12.9]} 18. Bd2 {[%clk 0:02:12.6]}
18... Qe8 {[%clk 0:02:01.4]} 19. Qb7 {[%clk 0:02:05.1]} 19... Qb8 {[%clk
0:01:55.2]} 20. Qa6 {[%clk 0:01:59.5]} 20... g5 {[%clk 0:01:50.8]} 21. Ne5
{[%clk 0:02:00.2]} 21... Kg7 {[%clk 0:01:47.7]} 22. f4 {[%clk 0:01:45.8]} 22...
f6 {[%clk 0:01:18.2]} 23. Nc6 {[%clk 0:01:42.3]} 23... Qd6 {[%clk 0:01:17.9]}
24. fxg5 {[%clk 0:01:41.2]} 24... hxg5 {[%clk 0:01:15]} 25. Nxe7 {[%clk
0:01:41.8]} 25... Nxe7 {[%clk 0:01:07.3]} 26. Qa4 {[%clk 0:01:20.8]} 26... Nf5
{[%clk 0:01:01.4]} 27. Bc3 {[%clk 0:01:12.3]} 27... Rxh3 {[%clk 0:01:00.2]} 28.
Qa6 {[%clk 0:01:06.5]} 28... Qh2+ {[%clk 0:00:59.6]} 29. Kf2 {[%clk 0:01:06.3]}
29... Qg3+ {[%clk 0:01:01]} 30. Kg1 {[%clk 0:00:48.3]} 30... Rc8 {[%clk
0:00:52.6]} 31. Qb7+ {[%clk 0:00:45.9]} 31... Kg6 {[%clk 0:00:51.7]} 32. Qxc8
{[%clk 0:00:46.7]} 32... Qh2+ {[%clk 0:00:52.6]} 33. Kf2 {[%clk 0:00:47.2]}
33... Qg3+ {[%clk 0:00:52.9]} 34. Ke2 {[%clk 0:00:44.9]} 34... Qe3+ {[%clk
0:00:52]} 35. Kd1 {[%clk 0:00:45.8]} 35... Qd3+ {[%clk 0:00:53.4]} 36. Bd2
{[%clk 0:00:45.4]} 36... Qxf1+ {[%clk 0:00:52.3]} 37. Kc2 {[%clk 0:00:46.2]}
37... Qd3+ {[%clk 0:00:53.5]} 38. Kd1 {[%clk 0:00:47.2]} 38... Ne3+ {[%clk
0:00:54.2]} 39. Ke1 {[%clk 0:00:46.6]} 39... Qf1# {[%clk 0:00:54]} 0-1

[Event "***Titled Tuesday 3|2 Blitz"]
[Site "Chess.com"]
[Date "2017.02.07"]
[Round "7"]
[White "Shivagami"]
[Black "MattyDPerrine"]
[Result "0-1"]
[WhiteElo "1981"]
[BlackElo "2184"]
[TimeControl "180+2"]
[EndTime "14:40:38 PST"]
[Termination "MattyDPerrine won by resignation"]

1. d4 {[%clk 0:03:02]} 1... Nf6 {[%clk 0:03:00.5]} 2. Bf4 {[%clk 0:02:59.4]}
2... c5 {[%clk 0:03:00]} 3. e3 {[%clk 0:02:57.8]} 3... e6 {[%clk 0:03:01.1]} 4.
c3 {[%clk 0:02:51.4]} 4... Nc6 {[%clk 0:02:36.8]} 5. Nd2 {[%clk 0:02:46.8]} 5...
b6 {[%clk 0:02:36.3]} 6. Bd3 {[%clk 0:02:43.3]} 6... Be7 {[%clk 0:02:37.2]} 7.
h3 {[%clk 0:02:38.4]} 7... Bb7 {[%clk 0:02:38]} 8. Ngf3 {[%clk 0:02:39]} 8...
O-O {[%clk 0:02:37.3]} 9. O-O {[%clk 0:02:39.7]} 9... d5 {[%clk 0:02:36.7]} 10.
Qb1 {[%clk 0:02:19.6]} 10... Bd6 {[%clk 0:02:31]} 11. Ne5 {[%clk 0:02:19.3]}
11... Qc7 {[%clk 0:02:16.4]} 12. Ndf3 {[%clk 0:01:46.1]} 12... Ne7 {[%clk
0:02:10.1]} 13. Ng5 {[%clk 0:01:05.5]} 13... g6 {[%clk 0:01:03.7]} 14. h4 {[%clk
0:00:56.1]} 14... Nf5 {[%clk 0:00:50.8]} 15. Bxf5 {[%clk 0:00:44.7]} 15... exf5
{[%clk 0:00:46.9]} 16. f3 {[%clk 0:00:26.7]} 16... Rae8 {[%clk 0:00:21.4]} 17.
Qe1 {[%clk 0:00:23.7]} 17... Ba6 {[%clk 0:00:18]} 18. Rf2 {[%clk 0:00:23.9]}
18... Nh5 {[%clk 0:00:18.8]} 19. Nh3 {[%clk 0:00:11.9]} 19... f6 {[%clk
0:00:15]} 20. Nxg6 {[%clk 0:00:06]} 20... hxg6 {[%clk 0:00:15]} 21. Bxd6 {[%clk
0:00:06.5]} 21... Qxd6 {[%clk 0:00:16.9]} 22. f4 {[%clk 0:00:06.3]} 22... cxd4
{[%clk 0:00:14.8]} 23. cxd4 {[%clk 0:00:06.1]} 23... Ng3 {[%clk 0:00:12.2]} 24.
Rf3 {[%clk 0:00:06.4]} 24... Ne4 {[%clk 0:00:12.9]} 25. h5 {[%clk 0:00:05.9]}
25... g5 {[%clk 0:00:11.6]} 26. Qd1 {[%clk 0:00:03.7]} 26... g4 {[%clk
0:00:10.9]} 0-1